[Event "Chhattisgarh Masters GM 2022"]
[Site "Chhattisgarh"]
[Date "2022.09.27"]
[Round "9.10"]
[White "Panesar Vedant"]
[Black "Harshavardhan G B"]
[Result "0-1"]
[ECO "E73"]
[WhiteElo "2336"]
[BlackElo "2429"]
[Annotator "TA"]
[PlyCount "100"]
[EventDate "2022.09.19"]
[EventCountry "IND"]
[SourceTitle "playchess.com"]
[Source "ChessBase"]
[SourceQuality "1"]
[TimeControl "5400+30"]

{[%evp 13,100,52,36,49,58,55,62,0,8,7,50,43,39,25,46,10,40,-137,-129,-145,-140,-126,92,0,97,93,110,103,112,45,55,0,350,394,382,374,324,136,135,130,117,117,120,121,135,138,135,131,136,-244,-244,-235,-230,-370,-351,-585,-585,-670,-661,-633,-633,-633,-633,-633,-633,-633,-577,-29974,-29975,-29973,-29972,-29971,-29972,-29972,-29973,-29976,-29974,-29976,-29976,-29980,-29981,-29981,-29982,-29983,-29984,-29984,-29985,-29984,-29985]} 1. d4 {[%emt 0:00:02] Kapnisis,Spyridon} Nf6 {[%emt 0:00:17]} 2. c4 {[%emt 0:00:06]} g6 {[%emt 0:00:16]} 3. Nc3 {[%emt 0:00:15]} Bg7 {[%emt 0:00:26]} 4. e4 {[%emt 0:00:06]} d6 {[%emt 0:00:32]} 5. Be2 {[%emt 0:04:33]} O-O {[%emt 0:00:08]} 6. Be3 {[%emt 0:00:02]} e5 {[%emt 0:01:04]} 7. d5 {[%emt 0:00:15]} Na6 {[%emt 0:05:17]} 8. g4 {[%emt 0:03:51] E73: King's Indian: Averbakh Variation without 6...c5.} Nc5 {[%emt 0:00:20]} 9. f3 {[%emt 0:00:07]} h5 {[%emt 0:00:10] The modern move.} 10. h4 {[%emt 0:01:05]} ({White should try} 10. g5 $14) 10... hxg4 $11 {[%emt 0:07:00]} 11. b4 $1 {[%emt 0:00:25]} gxf3 {[%emt 0:03:56]} (11... Na6 {feels hotter.} 12. fxg4 Qd7 13. g5 Ng4) 12. Bxf3 {[%emt 0:00:08]} Ncxe4 {[%emt 0:01:05]} 13. Nxe4 {[%emt 0:12:07]} Nxe4 {[%emt 0:00:29]} 14. Bxe4 {[%emt 0:00:05]} f5 $1 {[%emt 0:00:10] [#]} 15. Bc2 $146 {[%emt 0:02:03]} (15. Bg5 $14 {is the one way to stay ahead.} Qe8 16. Bc2) ({Predecessor:} 15. Bg5 Bf6 16. Bxf6 Qxf6 17. Bc2 e4 18. Ne2 f4 19. Qd4 f3 20. Qxf6 Rxf6 21. Ng3 {½-½ (81) Muradli,M (2449)-Iskandarov,M (2535) Nakhchivan 2021 CBM 203 Extra [Kapnisis,Spyridon]}) 15... f4 $17 {[%emt 0:07:37][%mdl 1024] Black has strong compensation.} 16. Bf2 {[%emt 0:01:55]} e4 $1 {[%emt 0:01:38]} (16... Bf5 $6 17. Bxf5 Rxf5 18. Qg4 $11) 17. Bd4 {[%emt 0:31:18]} Bf5 $2 {[%emt 0:02:12]} (17... Qe7 $17 {aiming for ...f3.} 18. Ne2 (18. Bxg7 Qxg7 19. Ne2 f3 $17) 18... f3 19. Bxg7 Qxg7) 18. Ne2 {[%emt 0:03:23]} (18. Bxg7 $16 Kxg7 19. Qd4+ Qf6 20. Qxf6+ Kxf6 21. Nh3) 18... Bh6 {[%emt 0:34:43]} (18... Qd7 $1 $11 {remains equal.}) 19. Bb2 $16 {[%emt 0:13:59]} Kh7 {[%emt 0:14:45]} 20. h5 {[%emt 0:02:30]} g5 {[%emt 0:01:47]} 21. Nd4 {[%emt 0:00:34]} ({Better is} 21. Kf1 $1 $16 {Threatens to win with Nd4.} Re8 22. Nd4) 21... Qf6 $14 {[%emt 0:03:53]} 22. Nxf5 {[%emt 0:06:30]} ({White should play} 22. Qb1 $14 Bg7 23. h6 (23. Bxe4 $2 Rfe8 $19)) 22... Qxf5 $4 {[%emt 0:13:45][%mdl 8192]} (22... Qxb2 $11 23. Bxe4 Rae8 24. Nxd6+ Rxe4+ 25. Nxe4 Qg2 26. Nxg5+ Bxg5 27. Qd3+ Kh8) 23. Qd4 $18 {[%emt 0:00:25]} Rae8 {[%emt 0:00:00]} 24. O-O-O $1 {[%emt 0:00:20]} Re5 {[%emt 0:00:00]} 25. Qxa7 {[%emt 0:01:14]} (25. Rhe1 $1 $18 {[%cal Rc2e4] is the precise move to win.} Rfe8 26. Qxa7) 25... Re7 $16 {[%emt 0:00:00]} 26. Rhe1 $1 {[%emt 0:01:54] And now Rd4 would win.} f3 {[%emt 0:00:00] White must now prevent ...f2.} 27. Qd4 {[%emt 0:01:24][%cal Re1e4]} ({Avoid the trap} 27. Qxb7 $2 f2 28. Rf1 g4+ 29. Kb1 g3 $19) 27... Rfe8 {[%emt 0:00:00] Hoping for ...f2.} 28. Qf6 {[%emt 0:00:41]} g4+ {[%emt 0:00:00][%cal Bg5g4,Bg4g3][%mdl 32]} 29. Kb1 {[%emt 0:00:21]} Qxf6 {[%emt 0:00:03]} 30. Bxf6 {[%emt 0:00:05] This bishop pair is nice.} f2 {[%emt 0:00:07]} 31. Rf1 {[%emt 0:09:13][%mdl 8192] Now White is beyond hope.} (31. Re2 $16 {and life is bright.} Rf7 32. Rxf2) 31... g3 $19 {[%emt 0:00:20]} 32. Bh4 {[%emt 0:02:38] [#]} Bf4 {[%emt 0:00:32] ...Kh6 is the strong threat.} ({Not} 32... Rg7 {[#]} 33. Bxg3 $1 Rxg3 34. Rxf2 $14) 33. Bxe7 {[%emt 0:02:05]} (33. Rxf2 $142 gxf2 34. Bxf2) 33... Rxe7 {[%emt 0:00:09]} 34. Rde1 $2 {[%emt 0:01:10]} (34. Rxf2 {was necessary.} gxf2 35. Rf1) 34... Kh6 {[%emt 0:01:05] Strongly threatening ...e3.} ({Inferior is} 34... fxe1=B 35. Rxf4 Kh6 36. Rxe4 Rxe4 37. Bxe4 $17) 35. Bxe4 {[%emt 0:00:40]} fxe1=Q+ {[%emt 0:00:57]} 36. Rxe1 {[%emt 0:00:01][%mdl 4096] Endgame KRB-KRB} g2 {[%emt 0:00:19][%cal Oe7e4] ( -> ...Rxe4!)} 37. Rg1 {[%emt 0:00:06]} Rxe4 {[%emt 0:00:04]} 38. Rxg2 {[%emt 0:00:01]} Rxc4 {[%emt 0:00:08] KRB-KR} 39. a3 {[%emt 0:01:17]} Be5 {[%emt 0:00:21]} 40. Rc2 {[%emt 0:01:05]} Rxc2 {[%emt 0:00:38] Black mates.} 41. Kxc2 {[%emt 0:00:01] KB-KP} Bd4 {[%emt 0:00:10]} 42. Kd3 {[%emt 0:00:17]} Bb2 {[%emt 0:01:39]} 43. a4 {[%emt 0:00:00]} Kxh5 {[%emt 0:00:00] KB-K3P} 44. a5 {[%emt 0:00:00]} Ba3 {[%emt 0:00:00]} 45. b5 {[%emt 0:00:00]} Bc5 {[%emt 0:00:00]} 46. a6 {[%emt 0:00:00]} bxa6 {[%emt 0:00:00]} 47. bxa6 {[%emt 0:00:00]} Kg5 {[%emt 0:00:00]} 48. Kc4 {[%emt 0:00:00]} Kf5 {[%emt 0:00:00]} 49. Kb5 {[%emt 0:00:00]} Ke5 {[%emt 0:00:00]} 50. Kc6 {[%emt 0:00:00]} Bb6 {[%emt 0:00:00] Weighted Error Value: White=0.56/Black=0.24 (precise)} 0-1

[Event "Chhattisgarh Masters GM 2022"]
[Site "Chhattisgarh"]
[Date "2022.09.27"]
[Round "9.11"]
[White "Luong Phuong Hanh"]
[Black "Gaurav Rajesh Zagade"]
[Result "0-1"]
[ECO "A49"]
[WhiteElo "2056"]
[BlackElo "2160"]
[Annotator "TA"]
[PlyCount "146"]
[EventDate "2022.09.19"]
[EventCountry "IND"]
[SourceTitle "playchess.com"]
[Source "ChessBase"]
[SourceQuality "1"]
[TimeControl "5400+30"]

{[%evp 12,146,22,10,11,10,18,20,11,11,11,11,19,16,18,0,0,0,0,0,-2,-14,-14,-44,-46,-51,-43,-48,-22,-47,-47,-46,-56,-75,-77,-77,-77,-101,-101,-101,-101,-107,-106,-106,-106,-106,-106,-106,-106,-106,-106,-147,-141,-141,-137,-138,-133,-178,-178,-178,-178,-178,-178,-5343,-5492,-5512,-5487,-5525,-5506,-5027,-5356,-5380,-5247,-5347,-256,-5394,-5372,-5364,-5381,-5139,-4958,-4729,-4385,-2730,-304,-6119,-5435,-5394,-4208,-5180,-5183,-4874,-4710,-2487,-1660,-786,-651,-29949,-29945,-29970,-29971,-29971,-29972,-29972,-29970,-691,0,-29972,-29973,-29973,-29974,-29974,-29975,-29975,-29976,-29979,-29980,-29977,-29978,-29977,-29974,-29975,-29978,-29979,-29969,-29979,-29980,-29980,-29981,-29981,-29982,-29984,-29985,-29990,-29991,-29992,-29992]} 1. d4 {[%emt 0:00:04]} Nf6 {[%emt 0:00:11]} 2. Nf3 {[%emt 0:00:05]} g6 {[%emt 0:00:08]} 3. g3 {[%emt 0:00:04]} Bg7 {[%emt 0:00:09]} 4. Bg2 {[%emt 0:00:06]} O-O {[%emt 0:00:19]} 5. O-O {[%emt 0:00:05]} d6 {[%emt 0:00:22][%cal Bd7d6,Bd6e5,Be5e4][%mdl 32]} 6. a4 {[%emt 0:00:07][%cal Ba2a4,Ba4a5,Ba5a6][%mdl 32]} Nc6 {[%emt 0:02:02][%cal Bb8c6,Bc6d4,Bd4c2][%mdl 32]} 7. a5 {[%emt 0:00:42]} e5 {[%emt 1:30:49] A49: 1 d4 Nf6 2 Nf3 g6 3 g3: Anti-King's Indian systems.} 8. dxe5 {[%emt 0:07:24]} dxe5 {[%emt 0:00:00]} 9. a6 {[%emt 0:00:39]} e4 {[%emt 0:00:00] The position is equal.} 10. Qxd8 {[%emt 0:02:07]} Rxd8 {[%emt 0:00:00]} 11. Ng5 {[%emt 0:01:19]} Nd4 {[%emt 0:00:00]} 12. Nc3 {[%emt 0:01:56]} Nxc2 {[%emt 0:00:00] [#]} 13. Rb1 $146 {[%emt 0:04:13]} ({Predecessor:} 13. Ra4 b5 14. Ra5 Nd4 15. Ngxe4 Nxe4 16. Bxe4 Rb8 17. Be3 Bh3 18. Re1 Be6 19. Bg5 {1-0 (35) Nguyen,V (2451)-Ajay,K (2233) Mumbai 2018}) 13... Nd4 $36 {[%emt 0:00:00][%mdl 2048] Black has the initiative.} ({Much less strong is} 13... bxa6 14. Ngxe4 Nxe4 15. Bxe4 $16) 14. Ngxe4 {[%emt 0:00:19]} Nxe4 {[%emt 0:00:00]} 15. Bxe4 {[%emt 0:00:07]} Rb8 {[%emt 0:00:00]} 16. Bf4 {[%emt 0:08:15]} Ne6 {[%emt 0:00:00]} 17. Be3 {[%emt 0:03:21]} bxa6 {[%emt 0:00:00]} 18. Bxa7 {[%emt 0:01:23]} Rb4 {[%emt 0:00:00]} 19. Bg2 {[%emt 0:00:43]} Bb7 {[%emt 0:00:00] Against Nd5} 20. Be3 {[%emt 0:01:48]} Bxg2 {[%emt 0:00:00]} 21. Kxg2 {[%emt 0:00:04]} Rdb8 {[%emt 0:00:00]} 22. Nd5 {[%emt 0:01:42]} Rxb2 {[%emt 0:00:00]} 23. Rbc1 {[%emt 0:05:30]} c5 {[%emt 0:00:00]} 24. Bxc5 {[%emt 0:06:14]} Nxc5 {[%emt 0:00:00]} 25. Rxc5 {[%emt 0:00:02]} Rxe2 {[%emt 0:00:00]} 26. Rc6 {[%emt 0:07:21]} a5 {[%emt 0:00:00]} 27. Ra6 {[%emt 0:00:26]} Bd4 $1 {[%emt 0:00:00]} 28. Rxa5 {[%emt 0:01:11]} Rbb2 {[%emt 0:00:00][%cal Rd4f2] Black is more active.} 29. Nf4 {[%emt 0:03:07]} Rxf2+ {[%emt 0:00:00]} 30. Rxf2 {[%emt 0:00:07]} Rxf2+ $17 {[%emt 0:00:00][%mdl 4096] Endgame KRB-KRN} 31. Kh3 {[%emt 0:00:29]} h5 {[%emt 0:00:00]} 32. Ra4 {[%emt 0:02:02]} Be3 {[%emt 0:00:00]} 33. Re4 {[%emt 0:04:53]} Bb6 {[%emt 0:00:00]} 34. Nxg6 {[%emt 0:04:18]} fxg6 {[%emt 0:00:00] KRB-KR} 35. Re6 {[%emt 0:00:08]} Rb2 {[%emt 0:00:00]} 36. Rxg6+ {[%emt 0:00:07]} Kh7 $1 {[%emt 0:00:00]} 37. Rg5 {[%emt 0:18:11]} (37. Re6) 37... Kh6 $19 {[%emt 0:15:00]} 38. Rd5 {[%emt 0:06:44]} Bg1 {[%emt 0:00:00][%csl Gg1][%cal Rb2h2]} 39. Rd6+ {[%emt 0:00:03]} Kg5 {[%emt 0:00:00][%csl Gg1][%cal Rb2h2]} 40. Rd5+ {[%emt 0:00:02]} Kg6 {[%emt 0:00:00][%csl Gg1][%cal Rb2h2]} 41. Rd6+ {[%emt 0:00:08]} Kg7 {[%emt 0:00:00][%csl Gg1][%cal Rb2h2]} 42. Kh4 {[%emt 0:01:04]} Rxh2+ {[%emt 0:00:00]} 43. Kg5 {[%emt 0:00:02]} Be3+ {[%emt 0:00:00]} 44. Kf5 {[%emt 0:00:02] [#]} Rf2+ $1 {[%emt 0:00:00]} 45. Ke4 {[%emt 0:00:09]} Bg5 {[%emt 0:00:00]} 46. Ra6 {[%emt 0:01:15]} Bf6 {[%emt 0:00:00] Threatens to win with ...Kg6.} 47. Ra5 {[%emt 0:01:05]} Kg6 {[%emt 0:00:00] Strongly threatening ...Be7.} 48. Rb5 $2 {[%emt 0:00:07]} (48. Ke3 Rb2 49. Rd5) 48... Rf1 {[%emt 0:00:00]} 49. Ra5 {[%emt 0:00:20]} Bc3 {[%emt 0:00:00]} 50. Rc5 {[%emt 0:03:26]} Bg7 {[%emt 0:00:00]} 51. Rb5 {[%emt 0:00:34]} Rf8 {[%emt 0:00:00] aiming for ...Bh8.} 52. Rc5 {[%emt 0:00:27]} Bb2 {[%emt 0:00:00]} 53. Ke3 {[%emt 0:01:18]} Ba3 {[%emt 0:00:00]} 54. Rd5 {[%emt 0:01:03]} Rf6 {[%emt 0:00:00]} 55. Ke2 {[%emt 0:04:08]} Bd6 {[%emt 0:09:00]} 56. Rd3 {[%emt 0:00:02]} Kg5 {[%emt 0:00:00]} 57. Rf3 {[%emt 0:00:06]} Re6+ {[%emt 0:00:00]} 58. Re3 {[%emt 0:00:41]} Rf6 {[%emt 0:00:00]} 59. Rf3 $1 {[%emt 0:00:07]} Rg6 {[%emt 0:00:00] Black mates.} 60. Kf1 {[%emt 0:02:42]} Kg4 {[%emt 0:00:00][%csl LRf3,LRg3]} 61. Kg2 {[%emt 0:00:29]} Re6 {[%emt 0:00:00]} 62. Rd3 {[%emt 0:00:51]} Bc5 {[%emt 0:00:00]} 63. Rd5 {[%emt 0:00:00]} Re2+ {[%emt 0:00:00]} 64. Kf1 {[%emt 0:00:00] [#]} Rf2+ $1 {[%emt 0:00:00]} 65. Ke1 {[%emt 0:00:00]} Rc2 {[%emt 0:00:00]} 66. Kd1 {[%emt 0:00:00]} Rc4 {[%emt 0:00:00]} 67. Ke2 {[%emt 0:00:00]} Bb6 {[%emt 0:00:00]} 68. Rd6 {[%emt 0:00:00]} Re4+ {[%emt 0:00:00]} 69. Kf1 {[%emt 0:00:00]} Bc7 {[%emt 0:00:00]} 70. Rg6+ {[%emt 0:00:00]} Kf3 {[%emt 0:00:00]} 71. Rc6 {[%emt 0:00:00]} Bxg3 {[%emt 0:00:00][%csl Gg3][%cal Re4e1]} 72. Rf6+ {[%emt 0:00:00]} Bf4 {[%emt 0:00:00]} 73. Rf8 {[%emt 0:00:00]} Ra4 {[%emt 0:00:00] Weighted Error Value: White=0.29 (precise) /Black=0.01 (flawless)} 0-1

[Event "Chhattisgarh Masters GM 2022"]
[Site "Chhattisgarh"]
[Date "2022.09.27"]
[Round "9.12"]
[White "Divya Deshmukh"]
[Black "Mahalakshmi D M"]
[Result "0-1"]
[ECO "D00"]
[WhiteElo "2330"]
[BlackElo "1145"]
[Annotator "TA"]
[PlyCount "64"]
[EventDate "2022.09.19"]
[EventCountry "IND"]
[SourceTitle "playchess.com"]
[Source "ChessBase"]
[SourceQuality "1"]
[TimeControl "5400+30"]

{[%evp 9,64,0,9,-5,-5,5,13,-1,16,16,26,-7,-8,-14,-11,-8,-8,-4,-6,-47,-11,-7,54,50,51,35,75,-10,-2,-16,-3,-12,-23,-83,-120,-104,-48,-49,-59,-39,-46,-49,-32,-33,-27,-25,-32,-110,-117,-118,-112,-251,-223,-797,-793,-774,-756]} 1. d4 {[%emt 0:00:05]} Nf6 {[%emt 0:00:23]} 2. Nc3 {[%emt 0:00:06]} d5 {[%emt 1:31:07]} 3. Bf4 {[%emt 0:00:05]} c6 {[%emt 0:00:00]} 4. e3 {[%emt 0:00:18]} Bf5 {[%emt 0:00:00]} 5. Nf3 {[%emt 0:00:17]} e6 {[%emt 0:00:00]} 6. Be2 {[%emt 0:02:59] D00: 1 d4 d5: Unusual lines.} Bb4 {[%emt 0:00:00]} 7. O-O {[%emt 0:01:36]} O-O {[%emt 0:02:30]} 8. Bd3 {[%emt 0:02:40] [#] The position is equal.} Bxc3 $146 {[%emt 0:00:00]} ({Predecessor:} 8... Bg4 9. h3 Bh5 10. a3 Bd6 11. Re1 Qc7 12. Bxd6 Qxd6 13. e4 dxe4 14. Nxe4 Nxe4 15. Rxe4 Nd7 16. c3 Rfd8 17. Rh4 Nf6 {½-½ (17) Belz,B-Fischer,A freechess.de 2015}) 9. bxc3 {[%emt 0:00:07]} Ne4 {[%emt 0:00:00]} 10. Bxe4 {[%emt 0:03:08]} Bxe4 {[%emt 0:00:00]} 11. Nd2 {[%emt 1:24:39]} Bg6 {[%emt 0:00:00]} 12. c4 {[%emt 0:00:00]} Nd7 {[%emt 0:00:00]} 13. Qb1 {[%emt 0:00:00]} Qa5 {[%emt 0:00:00]} 14. Nf3 {[%emt 0:00:00]} b5 {[%emt 0:00:00]} 15. c5 {[%emt 0:00:00][%cal Oa2a4]} Rfe8 {[%emt 0:00:00]} (15... Qa4 $11) 16. a4 $14 {[%emt 0:00:00]} b4 {[%emt 0:00:00]} 17. Qb3 {[%emt 0:00:00]} Bh5 {[%emt 0:00:00]} 18. Bd6 {[%emt 0:00:00]} ({Better is} 18. Ne5 $16) 18... Bxf3 $11 {[%emt 0:05:30]} 19. gxf3 {[%emt 0:00:00]} e5 {[%emt 0:00:00]} 20. Rfb1 {[%emt 0:00:00]} Qd8 {[%emt 0:00:00]} 21. Bxe5 {[%emt 0:00:00]} (21. Qxb4 $11 {remains equal.} Qg5+ 22. Kf1) 21... Nxe5 $17 {[%emt 0:00:00]} 22. dxe5 {[%emt 0:00:00]} Qg5+ {[%emt 0:00:00]} ({Black should try} 22... a5 $17 23. f4 Qh4) 23. Kf1 $15 {[%emt 0:00:00]} Qxe5 {[%emt 0:00:00] [#] Threatens to win with ...a5.} 24. Qxb4 {[%emt 0:00:00]} Qxh2 {[%emt 0:00:00] aiming for ...Rab8.} 25. Qd4 {[%emt 0:00:00]} Qh5 {[%emt 0:00:00]} 26. Ke2 {[%emt 0:00:00]} Re4 {[%emt 0:00:00]} 27. Qb2 {[%emt 0:05:48]} (27. Rh1 Rxd4 28. Rxh5 Rc4 $17) 27... Rae8 {[%emt 0:00:00] [#] Strongly threatening ...Rf4.} 28. Rg1 {[%emt 0:02:04]} (28. Rh1 $1 $15 Rh4 29. Rag1) 28... g6 $17 {[%emt 0:00:00] White must now prevent ...Rf4.} 29. Qf6 {[%emt 0:00:19] Against Rf4} Rc4 $36 {[%emt 0:00:00][%csl LRc2,LRc5][%mdl 2048] Black has strong initiative.} 30. Rg5 {[%emt 0:00:41]} (30. c3 $17) 30... Qh4 {[%emt 0:00:00] The board is on fire.} ({Stronger than} 30... Rxc2+ 31. Kd1 Qh2 32. Rf5 (32. Kxc2 {is a self mate.} Qxf2+ 33. Kb1 Qf1+ 34. Kb2 Qe2+ 35. Kb1 Qd3+ 36. Ka2 Rxe3 37. Rc1 Qa3+ 38. Kb1 Re2 39. Qd8+ Kg7) (32. Qxc6 Rxe3 33. Qa8+ Kg7 34. Qxd5 Ree2) 32... gxf5 33. Qg5+ Kf8 34. Kxc2 $19) 31. Rc1 {[%emt 0:00:25]} (31. Rag1) 31... Re6 $19 {[%emt 0:00:00]} 32. Qf5 {[%emt 0:00:31]} Kf8 {[%emt 0:00:00] Weighted Error Value: White=0.38/Black=0.11 (very precise)} 0-1

[Event "Chhattisgarh Masters GM 2022"]
[Site "Chhattisgarh"]
[Date "2022.09.27"]
[Round "9.12"]
[White "Nagare Kaivalya Sandip"]
[Black "Bommini Mounika Akshaya"]
[Result "1-0"]
[ECO "B99"]
[WhiteElo "1996"]
[BlackElo "2152"]
[Annotator "TA"]
[PlyCount "89"]
[EventDate "2022.09.19"]
[EventCountry "IND"]
[SourceTitle "playchess.com"]
[Source "ChessBase"]
[SourceQuality "1"]
[TimeControl "5400+30"]

{[%evp 30,89,7,0,0,0,0,0,0,0,0,0,52,0,0,0,0,-28,-4,-8,-22,-32,0,0,0,0,0,0,0,0,0,0,0,0,0,0,0,0,0,0,0,0,0,0,1881,1654,12840,12836,12840,124,230,0,12840,12840,12841,-12841,12841,12842,12841,12842,12842,12843]} 1. e4 {[%emt 0:00:21]} c5 {[%emt 0:00:08]} 2. Nf3 {[%emt 0:00:08]} d6 {[%emt 0:00:05]} 3. d4 {[%emt 0:00:49]} cxd4 {[%emt 0:00:06]} 4. Nxd4 {[%emt 0:00:08]} Nf6 {[%emt 0:00:04]} 5. Nc3 {[%emt 0:00:05]} a6 {[%emt 0:00:03]} 6. Bg5 {[%emt 0:01:19]} e6 {[%emt 0:00:06]} 7. f4 {[%emt 0:00:07]} Be7 {[%emt 0:00:06]} 8. Qf3 {[%emt 0:00:03]} Qc7 {[%emt 0:00:04]} 9. O-O-O {[%emt 0:00:07]} Nbd7 {[%emt 0:00:04]} 10. Bd3 {[%emt 0:00:05]} h6 {[%emt 1:34:44]} 11. Bh4 {[%emt 0:02:23]} g5 {[%emt 0:00:00]} 12. fxg5 {[%emt 0:00:10]} Ne5 {[%emt 0:00:00]} 13. Qe2 {[%emt 0:02:27]} Nfg4 {[%emt 0:00:00]} 14. Nf3 {[%emt 0:06:46]} hxg5 {[%emt 0:00:00]} 15. Bg3 {[%emt 0:03:37]} Nxf3 {[%emt 0:00:00]} 16. gxf3 {[%emt 0:01:35]} Ne5 {[%emt 0:00:00] B99: Sicilian Najdorf: 6 Bg5 e6 7 f4 Be7 8 Qf3 Qc7 9 0-0-0 Nbd7.} 17. Qf2 {[%emt 0:13:41]} Bd7 {[%emt 0:00:00]} 18. Kb1 {[%emt 0:08:14]} b5 {[%emt 0:00:00] The position is equal.} 19. f4 {[%emt 0:08:04]} gxf4 {[%emt 0:00:00]} 20. Bxf4 {[%emt 0:00:06] [#]} Bc6 $146 {[%emt 0:00:00]} ({Black should play} 20... b4 $11 21. Bxe5 dxe5) ({Predecessor:} 20... Rh7 21. h4 b4 22. Ne2 Ng4 23. Qf3 e5 24. Bg5 f6 25. Bd2 Be6 26. Rdg1 Nh6 27. Rg6 Ng8 28. Rhg1 {1-0 (28) Mariano,M (2095)-Vicentin,M (1961) Cuiaba 2021}) 21. Ne2 {[%emt 0:18:02]} ({Better is} 21. h4 $14) 21... Bh4 $11 {[%emt 0:00:00]} 22. Bg3 {[%emt 0:06:47]} Bxg3 {[%emt 0:00:00]} 23. hxg3 {[%emt 0:02:22]} O-O-O {[%emt 0:00:00]} 24. Rxh8 {[%emt 0:02:25]} Rxh8 {[%emt 0:00:00]} 25. a4 {[%emt 0:00:08]} Bd7 {[%emt 0:00:00]} ({Much less strong is} 25... Nxd3 26. cxd3 e5 27. Nc3 $16) (25... Kb7 {feels hotter.} 26. axb5 axb5 27. Nd4 Ra8) 26. axb5 {[%emt 0:00:44]} axb5 {[%emt 0:00:00]} 27. Nd4 {[%emt 0:23:17]} Qc5 {[%emt 0:00:00]} 28. Qf6 {[%emt 0:00:00]} Rg8 {[%emt 0:00:00]} 29. Nf3 {[%emt 0:00:00]} Nxf3 {[%emt 0:00:00]} 30. Qxf3 {[%emt 0:00:00]} Rg7 {[%emt 0:00:00]} 31. Rh1 {[%emt 0:00:00]} Qe5 {[%emt 0:00:00]} 32. g4 {[%emt 0:00:00]} Bc6 {[%emt 0:00:00]} 33. Qf2 {[%emt 0:00:55]} Bxe4 {[%emt 0:07:31]} 34. Rh5 {[%emt 0:00:14][%mdl 64] [#] Skewer} f5 $1 {[%emt 0:00:59] ...Bxd3 is the strong threat.} 35. Qb6 {[%emt 0:00:24] Threatening mate with Rh8+.} Rb7 $1 {[%emt 0:03:02]} 36. Qa6 $40 {[%emt 0:00:18][%mdl 128] Threatens to win with Bxe4. White attacks.} Qd4 {[%emt 0:00:47][%mdl 8192]} (36... Bxd3 $11 37. Qa8+ Rb8 38. Qc6+ Kd8 39. Rh8+ Qxh8 40. Qxd6+ Kc8 41. Qc6+ Kd8 42. Qd6+ Kc8 43. Qc6+ Kd8 44. Qd6+) 37. Bxe4 $18 {[%emt 0:01:16]} Qxe4 {[%emt 0:00:29][%mdl 4096] Endgame KQR-KQR} 38. Rh7 {[%emt 0:01:28]} Kb8 {[%emt 0:00:34]} 39. Rh8+ $2 {[%emt 0:00:13]} ({Less strong is} 39. Qxd6+ Ka7 40. Rh3 b4 $16) (39. Qxb7+ Qxb7 40. Rxb7+ Kc8 {[#]} 41. g5 $1 Kxb7 42. g6) 39... Kc7 {[%emt 0:00:07]} 40. Rh7+ $2 {[%emt 0:00:38]} (40. g5 f4 41. Rf8 Qh1+ 42. Ka2) 40... Kb8 {[%emt 0:00:28]} 41. Rxb7+ {[%emt 0:00:29]} (41. Qxd6+ Ka7 42. Rh3 b4 $16) 41... Qxb7 {[%emt 0:00:19]} 42. Qxb7+ {[%emt 0:00:03]} ({Not} 42. Qxd6+ Qc7 43. Qxe6 fxg4 $16) 42... Kxb7 {[%emt 0:00:10]} 43. g5 {[%emt 0:00:03] White is clearly winning.} f4 {[%emt 0:00:36]} 44. Kc1 {[%emt 0:00:03]} f3 {[%emt 0:00:55]} 45. Kd2 {[%emt 0:00:04] Weighted Error Value: White=0.44/Black=0.09 (flawless)} 1-0